[Event "Early-Titled-Tuesday-Blitz-February-27-2024"]
[Site "Chess.com"]
[Date "2024.02.27"]
[Round "10"]
[White "eightbyeightchess"]
[Black "DeArron_Fox"]
[Result "1-0"]
[WhiteElo "2426"]
[BlackElo "2501"]
[TimeControl "180+1"]
[EndTime "9:56:44 PST"]
[Termination "eightbyeightchess won by checkmate"]

1. e4 {[%clk 0:03:00.9]} 1... c5 {[%clk 0:02:57]} 2. Nf3 {[%clk 0:02:57.6]} 2...
e6 {[%clk 0:02:57.4]} 3. d4 {[%clk 0:02:56.9]} 3... cxd4 {[%clk 0:02:58.3]} 4.
Nxd4 {[%clk 0:02:57.7]} 4... a6 {[%clk 0:02:58.9]} 5. Nc3 {[%clk 0:02:55.5]}
5... b5 {[%clk 0:02:58.9]} 6. Bd3 {[%clk 0:02:55.3]} 6... Bb7 {[%clk 0:02:59.4]}
7. O-O {[%clk 0:02:49.2]} 7... Nc6 {[%clk 0:02:59.9]} 8. Nxc6 {[%clk 0:02:48.5]}
8... Bxc6 {[%clk 0:03:00.8]} 9. Qe2 {[%clk 0:02:45]} 9... b4 {[%clk 0:02:43.4]}
10. Nd1 {[%clk 0:02:42.8]} 10... Nf6 {[%clk 0:02:39.1]} 11. Bg5 {[%clk
0:02:42.2]} 11... Qc7 {[%clk 0:02:25.9]} 12. Ne3 {[%clk 0:02:40.6]} 12... Nxe4
{[%clk 0:02:17.7]} 13. Bh4 {[%clk 0:02:29.4]} 13... Bd6 {[%clk 0:01:54.3]} 14.
h3 {[%clk 0:02:24.8]} 14... g5 {[%clk 0:01:36.6]} 15. Bxe4 {[%clk 0:02:22.5]}
15... Bxe4 {[%clk 0:01:37.5]} 16. Bxg5 {[%clk 0:02:21.9]} 16... Rg8 {[%clk
0:01:38]} 17. Qh5 {[%clk 0:02:18]} 17... Bf4 {[%clk 0:01:24.9]} 18. h4 {[%clk
0:02:13]} 18... Bxg5 {[%clk 0:00:43]} 19. hxg5 {[%clk 0:02:13.9]} 19... Qf4
{[%clk 0:00:43]} 20. Qg4 {[%clk 0:02:06.6]} 20... Qxg4 {[%clk 0:00:38.8]} 21.
Nxg4 {[%clk 0:02:07.5]} 21... Bxc2 {[%clk 0:00:11.6]} 22. Nf6+ {[%clk 0:01:49]}
22... Ke7 {[%clk 0:00:11.6]} 23. Nxg8+ {[%clk 0:01:49.4]} 23... Rxg8 {[%clk
0:00:12.4]} 24. Rac1 {[%clk 0:01:49.3]} 24... Ba4 {[%clk 0:00:03.2]} 25. f4
{[%clk 0:01:38.5]} 25... Bc6 {[%clk 0:00:03.6]} 26. Rfe1 {[%clk 0:00:40.3]}
26... h6 {[%clk 0:00:03.8]} 27. Re5 {[%clk 0:00:40.2]} 27... hxg5 {[%clk
0:00:04]} 28. Rxg5 {[%clk 0:00:40.9]} 28... Ra8 {[%clk 0:00:02.5]} 29. Kf2
{[%clk 0:00:39.4]} 29... a5 {[%clk 0:00:03]} 30. Rcc5 {[%clk 0:00:37.7]} 30...
Bd5 {[%clk 0:00:02.8]} 31. Rb5 {[%clk 0:00:31.1]} 31... Bxa2 {[%clk 0:00:01.7]}
32. Rxa5 {[%clk 0:00:28.8]} 32... Rxa5 {[%clk 0:00:02.6]} 33. Rxa5 {[%clk
0:00:28.7]} 33... Bd5 {[%clk 0:00:03.5]} 34. Rb5 {[%clk 0:00:28.2]} 34... b3
{[%clk 0:00:03.9]} 35. g4 {[%clk 0:00:28.8]} 35... Kd6 {[%clk 0:00:02.4]} 36.
Ke3 {[%clk 0:00:26.5]} 36... Kc6 {[%clk 0:00:02.7]} 37. Rb8 {[%clk 0:00:26.1]}
37... Kc5 {[%clk 0:00:02.8]} 38. Rf8 {[%clk 0:00:21.7]} 38... e5 {[%clk
0:00:03.1]} 39. fxe5 {[%clk 0:00:20.2]} 39... Be6 {[%clk 0:00:03.8]} 40. Kf4
{[%clk 0:00:19.8]} 40... Kd5 {[%clk 0:00:04.4]} 41. g5 {[%clk 0:00:19.5]} 41...
Kd4 {[%clk 0:00:04.7]} 42. Rc8 {[%clk 0:00:14.4]} 42... Kd3 {[%clk 0:00:03.7]}
43. Rc3+ {[%clk 0:00:12]} 43... Kd2 {[%clk 0:00:03.5]} 44. Kg3 {[%clk
0:00:11.3]} 44... Kd1 {[%clk 0:00:02.4]} 45. Kh4 {[%clk 0:00:11.6]} 45... Kd2
{[%clk 0:00:02.8]} 46. Kh5 {[%clk 0:00:12.2]} 46... Kd1 {[%clk 0:00:02.1]} 47.
Kh6 {[%clk 0:00:12.6]} 47... Kd2 {[%clk 0:00:02.6]} 48. Kg7 {[%clk 0:00:12.7]}
48... Kd1 {[%clk 0:00:02.6]} 49. Kf6 {[%clk 0:00:05.2]} 49... Kd2 {[%clk
0:00:02.6]} 50. g6 {[%clk 0:00:04.5]} 50... fxg6 {[%clk 0:00:02.6]} 51. Kxg6
{[%clk 0:00:05.4]} 51... Kd1 {[%clk 0:00:02.9]} 52. Kf6 {[%clk 0:00:05.6]} 52...
Bg4 {[%clk 0:00:02.8]} 53. Ke7 {[%clk 0:00:05.2]} 53... Be6 {[%clk 0:00:02.5]}
54. Kd6 {[%clk 0:00:05.6]} 54... Kd2 {[%clk 0:00:02.6]} 55. Kc5 {[%clk
0:00:06.1]} 55... Kd1 {[%clk 0:00:02]} 56. Kb4 {[%clk 0:00:06.5]} 56... Kd2
{[%clk 0:00:02.1]} 57. Rxb3 {[%clk 0:00:05.7]} 57... Bxb3 {[%clk 0:00:02.6]} 58.
Kxb3 {[%clk 0:00:06.6]} 58... Ke3 {[%clk 0:00:03.3]} 59. Kc4 {[%clk 0:00:05.6]}
59... Ke4 {[%clk 0:00:03.4]} 60. b4 {[%clk 0:00:03.9]} 60... Kxe5 {[%clk
0:00:04]} 61. Kc5 {[%clk 0:00:03.6]} 61... d6+ {[%clk 0:00:01.4]} 62. Kc6 {[%clk
0:00:03.5]} 62... d5 {[%clk 0:00:01.9]} 63. b5 {[%clk 0:00:04.4]} 63... d4
{[%clk 0:00:02.3]} 64. b6 {[%clk 0:00:05.3]} 64... d3 {[%clk 0:00:02.9]} 65. b7
{[%clk 0:00:06.2]} 65... Ke4 {[%clk 0:00:02.6]} 66. b8=Q {[%clk 0:00:07.1]}
66... Ke3 {[%clk 0:00:02.4]} 67. Qe8+ {[%clk 0:00:06.2]} 67... Kd2 {[%clk
0:00:02.5]} 68. Kc5 {[%clk 0:00:06.3]} 68... Kc2 {[%clk 0:00:02.6]} 69. Qe4
{[%clk 0:00:06.5]} 69... Kc3 {[%clk 0:00:02.6]} 70. Qd4+ {[%clk 0:00:06.5]}
70... Kc2 {[%clk 0:00:02.8]} 71. Kb4 {[%clk 0:00:06.5]} 71... d2 {[%clk
0:00:02.7]} 72. Qc3+ {[%clk 0:00:06.9]} 72... Kd1 {[%clk 0:00:02.9]} 73. Kb3
{[%clk 0:00:06.3]} 73... Ke2 {[%clk 0:00:02.2]} 74. Qe5+ {[%clk 0:00:06.1]}
74... Kf2 {[%clk 0:00:02]} 75. Qf4+ {[%clk 0:00:06.2]} 75... Ke1 {[%clk
0:00:02]} 76. Qe3+ {[%clk 0:00:06.2]} 76... Kd1 {[%clk 0:00:02.5]} 77. Kc3
{[%clk 0:00:06.2]} 77... Kc1 {[%clk 0:00:03.1]} 78. Qxd2+ {[%clk 0:00:07]} 78...
Kb1 {[%clk 0:00:04]} 79. Qb2# {[%clk 0:00:05.9]} 1-0

[Event "Early-Titled-Tuesday-Blitz-February-27-2024"]
[Site "Chess.com"]
[Date "2024.02.27"]
[Round "10"]
[White "PawnEatingZombie"]
[Black "TioCridineno"]
[Result "1-0"]
[WhiteElo "2193"]
[BlackElo "2396"]
[TimeControl "180+1"]
[EndTime "9:56:50 PST"]
[Termination "PawnEatingZombie won by checkmate"]

1. e4 {[%clk 0:03:00.9]} 1... c5 {[%clk 0:02:59.6]} 2. c3 {[%clk 0:03:00.4]}
2... Nf6 {[%clk 0:02:58.9]} 3. e5 {[%clk 0:03:00.1]} 3... Nd5 {[%clk 0:02:59.4]}
4. Nf3 {[%clk 0:03:00.5]} 4... d6 {[%clk 0:02:56.5]} 5. d4 {[%clk 0:02:58.9]}
5... cxd4 {[%clk 0:02:56.3]} 6. cxd4 {[%clk 0:02:59.5]} 6... Nc6 {[%clk
0:02:56.1]} 7. Bc4 {[%clk 0:02:52.7]} 7... dxe5 {[%clk 0:02:56.2]} 8. dxe5
{[%clk 0:02:46.6]} 8... Be6 {[%clk 0:02:56.4]} 9. O-O {[%clk 0:02:41.3]} 9... g6
{[%clk 0:02:55.1]} 10. Bb5 {[%clk 0:02:23.5]} 10... Bg7 {[%clk 0:02:52]} 11. Qa4
{[%clk 0:02:22.5]} 11... O-O {[%clk 0:02:39.1]} 12. Bxc6 {[%clk 0:02:21.5]}
12... bxc6 {[%clk 0:02:38.7]} 13. Nc3 {[%clk 0:02:20.5]} 13... Qb6 {[%clk
0:02:30.7]} 14. Ne4 {[%clk 0:02:08.8]} 14... a5 {[%clk 0:02:08.2]} 15. Bd2
{[%clk 0:01:52.9]} 15... Qxb2 {[%clk 0:02:03]} 16. Rab1 {[%clk 0:01:46.8]} 16...
Nb6 {[%clk 0:01:58.2]} 17. Qxc6 {[%clk 0:01:35.2]} 17... Qxa2 {[%clk 0:01:41.4]}
18. Qxb6 {[%clk 0:01:32.4]} 18... h6 {[%clk 0:01:39.7]} 19. Nc5 {[%clk
0:01:27.3]} 19... Bd5 {[%clk 0:01:38.9]} 20. Bf4 {[%clk 0:01:22]} 20... Qc4
{[%clk 0:01:33.3]} 21. Bg3 {[%clk 0:01:18.8]} 21... a4 {[%clk 0:01:25.7]} 22.
Rfc1 {[%clk 0:01:18.3]} 22... Qg4 {[%clk 0:01:25]} 23. h3 {[%clk 0:01:17.1]}
23... Qf5 {[%clk 0:01:22.8]} 24. Nd4 {[%clk 0:01:07.9]} 24... Qg5 {[%clk
0:01:12]} 25. Kh2 {[%clk 0:00:54.3]} 25... Bxe5 {[%clk 0:01:10.2]} 26. Nc6
{[%clk 0:00:42]} 26... Bxg3+ {[%clk 0:01:03.1]} 27. fxg3 {[%clk 0:00:41]} 27...
e6 {[%clk 0:00:55.8]} 28. h4 {[%clk 0:00:33.6]} 28... Qd2 {[%clk 0:00:49.5]} 29.
Rg1 {[%clk 0:00:30.1]} 29... Rfe8 {[%clk 0:00:44.9]} 30. Qc7 {[%clk 0:00:11.7]}
30... Kf8 {[%clk 0:00:23.3]} 31. Nd7+ {[%clk 0:00:09.8]} 31... Kg7 {[%clk
0:00:20]} 32. Qe5+ {[%clk 0:00:08.6]} 32... Kg8 {[%clk 0:00:17.2]} 33. Nf6+
{[%clk 0:00:08.3]} 33... Kf8 {[%clk 0:00:17.5]} 34. Nxe8 {[%clk 0:00:06.3]}
34... Kxe8 {[%clk 0:00:16.7]} 35. Nd4 {[%clk 0:00:05.4]} 35... Rd8 {[%clk
0:00:13.6]} 36. Nf3 {[%clk 0:00:03.4]} 36... Qd3 {[%clk 0:00:10.4]} 37. Qh8+
{[%clk 0:00:02.4]} 37... Ke7 {[%clk 0:00:10.3]} 38. Qxh6 {[%clk 0:00:02.7]}
38... Qf5 {[%clk 0:00:10.1]} 39. Qg5+ {[%clk 0:00:02.6]} 39... Ke8 {[%clk
0:00:09.1]} 40. Qxf5 {[%clk 0:00:02.3]} 40... gxf5 {[%clk 0:00:10]} 41. Nd4
{[%clk 0:00:02.3]} 41... a3 {[%clk 0:00:09.3]} 42. Nb3 {[%clk 0:00:01.9]} 42...
a2 {[%clk 0:00:08.6]} 43. Rb2 {[%clk 0:00:01.8]} 43... Ra8 {[%clk 0:00:08.7]}
44. Ra1 {[%clk 0:00:01.6]} 44... Ra3 {[%clk 0:00:07.5]} 45. Nc1 {[%clk
0:00:02.1]} 45... f4 {[%clk 0:00:06.3]} 46. Rbxa2 {[%clk 0:00:02.4]} 46... Rc3
{[%clk 0:00:05.9]} 47. gxf4 {[%clk 0:00:01.8]} 47... Rc4 {[%clk 0:00:05.8]} 48.
g3 {[%clk 0:00:02.3]} 48... Ke7 {[%clk 0:00:06.1]} 49. Kh3 {[%clk 0:00:02.7]}
49... Kf6 {[%clk 0:00:07]} 50. Kh2 {[%clk 0:00:03.1]} 50... Be4 {[%clk
0:00:07.6]} 51. Rd2 {[%clk 0:00:03.2]} 51... Bf5 {[%clk 0:00:07.3]} 52. Ne2
{[%clk 0:00:03.5]} 52... Rb4 {[%clk 0:00:06.9]} 53. Nd4 {[%clk 0:00:03.7]} 53...
Bg4 {[%clk 0:00:06.9]} 54. Nc6 {[%clk 0:00:02.9]} 54... Rb3 {[%clk 0:00:07]} 55.
Ne5 {[%clk 0:00:03.2]} 55... Bh5 {[%clk 0:00:05.8]} 56. Re1 {[%clk 0:00:03.8]}
56... Ra3 {[%clk 0:00:05.2]} 57. g4 {[%clk 0:00:04.2]} 57... Bg6 {[%clk
0:00:05.4]} 58. h5 {[%clk 0:00:04.5]} 58... Bh7 {[%clk 0:00:05.6]} 59. g5+
{[%clk 0:00:04.4]} 59... Kf5 {[%clk 0:00:05.8]} 60. g6 {[%clk 0:00:04.9]} 60...
fxg6 {[%clk 0:00:05.9]} 61. hxg6 {[%clk 0:00:05.3]} 61... Bxg6 {[%clk
0:00:06.5]} 62. Nxg6 {[%clk 0:00:05.7]} 62... Kxg6 {[%clk 0:00:06.6]} 63. Rxe6+
{[%clk 0:00:05.6]} 63... Kf5 {[%clk 0:00:07.5]} 64. Re5+ {[%clk 0:00:04.9]}
64... Kg4 {[%clk 0:00:07.7]} 65. Rg5+ {[%clk 0:00:04.5]} 65... Kxf4 {[%clk
0:00:07.7]} 66. Rg7 {[%clk 0:00:04.7]} 66... Ra1 {[%clk 0:00:07.4]} 67. Rdg2
{[%clk 0:00:04.7]} 67... Kf5 {[%clk 0:00:07.5]} 68. R7g5+ {[%clk 0:00:04.7]}
68... Kf6 {[%clk 0:00:08]} 69. R5g3 {[%clk 0:00:04.3]} 69... Kf5 {[%clk
0:00:08.1]} 70. Re3 {[%clk 0:00:04.7]} 70... Kf4 {[%clk 0:00:08.4]} 71. Re7
{[%clk 0:00:04.2]} 71... Kf5 {[%clk 0:00:08.7]} 72. Rf2+ {[%clk 0:00:04.4]}
72... Kg6 {[%clk 0:00:08.7]} 73. Re6+ {[%clk 0:00:03.6]} 73... Kg7 {[%clk
0:00:08.6]} 74. Re3 {[%clk 0:00:03.5]} 74... Ra6 {[%clk 0:00:06.4]} 75. Rg3+
{[%clk 0:00:03.4]} 75... Kh6 {[%clk 0:00:06.6]} 76. Kg1 {[%clk 0:00:02.5]} 76...
Kh7 {[%clk 0:00:06.2]} 77. Rh2+ {[%clk 0:00:02.1]} 77... Rh6 {[%clk 0:00:05.4]}
78. Rxh6+ {[%clk 0:00:02.7]} 78... Kxh6 {[%clk 0:00:05.9]} 79. Kf2 {[%clk
0:00:02.7]} 79... Kh5 {[%clk 0:00:06]} 80. Kf3 {[%clk 0:00:03.4]} 80... Kh4
{[%clk 0:00:06.9]} 81. Rg1 {[%clk 0:00:03.6]} 81... Kh5 {[%clk 0:00:07.8]} 82.
Kf4 {[%clk 0:00:03.5]} 82... Kh4 {[%clk 0:00:08.7]} 83. Rh1# {[%clk 0:00:03.1]}
1-0

[Event "Early-Titled-Tuesday-Blitz-February-27-2024"]
[Site "Chess.com"]
[Date "2024.02.27"]
[Round "10"]
[White "Mesa_1"]
[Black "Quattroporte300"]
[Result "0-1"]
[WhiteElo "2488"]
[BlackElo "2423"]
[TimeControl "180+1"]
[EndTime "9:56:51 PST"]
[Termination "Quattroporte300 won on time"]

1. e4 {[%clk 0:02:56.4]} 1... c5 {[%clk 0:02:58.7]} 2. Nc3 {[%clk 0:02:51.5]}
2... e6 {[%clk 0:02:57.9]} 3. Nf3 {[%clk 0:02:51.2]} 3... Nc6 {[%clk 0:02:56.1]}
4. d4 {[%clk 0:02:51.7]} 4... cxd4 {[%clk 0:02:56.7]} 5. Nxd4 {[%clk 0:02:52.6]}
5... Nf6 {[%clk 0:02:57.2]} 6. Ndb5 {[%clk 0:02:51.7]} 6... d6 {[%clk
0:02:55.6]} 7. Bf4 {[%clk 0:02:51.8]} 7... e5 {[%clk 0:02:56.1]} 8. Bg5 {[%clk
0:02:52.5]} 8... a6 {[%clk 0:02:56.6]} 9. Na3 {[%clk 0:02:53.2]} 9... b5 {[%clk
0:02:56.2]} 10. Bxf6 {[%clk 0:02:53.9]} 10... gxf6 {[%clk 0:02:55.9]} 11. Nd5
{[%clk 0:02:53.5]} 11... f5 {[%clk 0:02:49.1]} 12. Bd3 {[%clk 0:02:52.8]} 12...
f4 {[%clk 0:02:47.1]} 13. Qh5 {[%clk 0:02:50.8]} 13... Bg7 {[%clk 0:02:36.6]}
14. g3 {[%clk 0:02:50.1]} 14... fxg3 {[%clk 0:02:24]} 15. hxg3 {[%clk
0:02:47.3]} 15... Be6 {[%clk 0:02:22.1]} 16. O-O-O {[%clk 0:02:42.7]} 16... Kd7
{[%clk 0:02:12.3]} 17. f4 {[%clk 0:02:39.3]} 17... h6 {[%clk 0:02:02.2]} 18. f5
{[%clk 0:02:35.7]} 18... Bxd5 {[%clk 0:02:01.3]} 19. exd5 {[%clk 0:02:36.6]}
19... Nb4 {[%clk 0:01:56.2]} 20. Qxf7+ {[%clk 0:02:34.8]} 20... Qe7 {[%clk
0:01:56]} 21. Qh5 {[%clk 0:02:28.8]} 21... Qg5+ {[%clk 0:01:53.4]} 22. Qxg5
{[%clk 0:02:28.5]} 22... hxg5 {[%clk 0:01:54.3]} 23. g4 {[%clk 0:02:22.7]} 23...
Nxa2+ {[%clk 0:01:40.1]} 24. Kb1 {[%clk 0:02:22.6]} 24... Nb4 {[%clk 0:01:40.8]}
25. Be4 {[%clk 0:02:23.2]} 25... a5 {[%clk 0:01:23.7]} 26. Nxb5 {[%clk 0:02:19]}
26... Na6 {[%clk 0:01:20.1]} 27. Rdf1 {[%clk 0:01:55]} 27... Bf6 {[%clk
0:01:18.5]} 28. Nc3 {[%clk 0:01:50.4]} 28... Nc5 {[%clk 0:01:18.2]} 29. Bd3
{[%clk 0:01:50.4]} 29... Rab8 {[%clk 0:01:12.4]} 30. Ne4 {[%clk 0:01:40]} 30...
Nxe4 {[%clk 0:01:08.1]} 31. Bxe4 {[%clk 0:01:39.7]} 31... Rxh1 {[%clk
0:01:02.4]} 32. Rxh1 {[%clk 0:01:40.6]} 32... Rb4 {[%clk 0:01:02.6]} 33. Rh7+
{[%clk 0:01:36.9]} 33... Ke8 {[%clk 0:00:58.2]} 34. Bg2 {[%clk 0:01:03.6]} 34...
Rxg4 {[%clk 0:00:56.7]} 35. Bf3 {[%clk 0:00:59]} 35... Rf4 {[%clk 0:00:35.6]}
36. Bh5+ {[%clk 0:00:58.1]} 36... Kd8 {[%clk 0:00:36.2]} 37. Ra7 {[%clk
0:00:48.4]} 37... a4 {[%clk 0:00:27.8]} 38. Ra6 {[%clk 0:00:41.6]} 38... Be7
{[%clk 0:00:19.1]} 39. Be2 {[%clk 0:00:34]} 39... Rxf5 {[%clk 0:00:16.3]} 40.
Rxa4 {[%clk 0:00:32.7]} 40... Rf4 {[%clk 0:00:14.5]} 41. Ra8+ {[%clk 0:00:30.7]}
41... Kc7 {[%clk 0:00:14.9]} 42. c3 {[%clk 0:00:25.6]} 42... g4 {[%clk
0:00:14.6]} 43. Rg8 {[%clk 0:00:25.2]} 43... Bh4 {[%clk 0:00:11.7]} 44. Bxg4
{[%clk 0:00:23.9]} 44... Rf2 {[%clk 0:00:08.4]} 45. Rc8+ {[%clk 0:00:20.5]}
45... Kb7 {[%clk 0:00:07.3]} 46. Rh8 {[%clk 0:00:20.1]} 46... Bf6 {[%clk
0:00:06.5]} 47. Re8 {[%clk 0:00:15.4]} 47... Kb6 {[%clk 0:00:06]} 48. Ka2 {[%clk
0:00:14.8]} 48... Kc5 {[%clk 0:00:06.4]} 49. Be6 {[%clk 0:00:13.2]} 49... e4
{[%clk 0:00:05.7]} 50. Bf5 {[%clk 0:00:13.6]} 50... Bxc3 {[%clk 0:00:02.6]} 51.
Bxe4 {[%clk 0:00:10.6]} 51... Rxb2+ {[%clk 0:00:02.8]} 52. Ka3 {[%clk
0:00:11.3]} 52... Rb6 {[%clk 0:00:03]} 53. Rc8+ {[%clk 0:00:11.3]} 53... Kd4
{[%clk 0:00:03.6]} 54. Bf3 {[%clk 0:00:11]} 54... Bb2+ {[%clk 0:00:03.7]} 55.
Ka2 {[%clk 0:00:11]} 55... Bc3 {[%clk 0:00:03.9]} 56. Be2 {[%clk 0:00:10.2]}
56... Rb2+ {[%clk 0:00:04.1]} 57. Ka3 {[%clk 0:00:09.1]} 57... Rxe2 {[%clk
0:00:04.9]} 58. Kb3 {[%clk 0:00:09.9]} 58... Rb2+ {[%clk 0:00:04.9]} 59. Ka3
{[%clk 0:00:09.3]} 59... Rb5 {[%clk 0:00:04.9]} 60. Ka2 {[%clk 0:00:05.5]} 60...
Rxd5 {[%clk 0:00:05.4]} 61. Kb1 {[%clk 0:00:06.4]} 61... Rb5+ {[%clk 0:00:05.7]}
62. Kc2 {[%clk 0:00:06.5]} 62... Rb2+ {[%clk 0:00:05.8]} 63. Kc1 {[%clk
0:00:06.7]} 63... Rh2 {[%clk 0:00:06.1]} 64. Rg8 {[%clk 0:00:05.7]} 64... d5
{[%clk 0:00:06.5]} 65. Rg3 {[%clk 0:00:06]} 65... Kc4 {[%clk 0:00:05.7]} 66. Kd1
{[%clk 0:00:06.5]} 66... d4 {[%clk 0:00:05.8]} 67. Rg8 {[%clk 0:00:04.3]} 67...
Rh1+ {[%clk 0:00:05.3]} 68. Ke2 {[%clk 0:00:04.9]} 68... d3+ {[%clk 0:00:05.5]}
69. Ke3 {[%clk 0:00:05.8]} 69... Re1+ {[%clk 0:00:05.6]} 70. Kf2 {[%clk
0:00:06.3]} 70... Re7 {[%clk 0:00:05.9]} 71. Rc8+ {[%clk 0:00:06.2]} 71... Kb3
{[%clk 0:00:06.4]} 72. Rb8+ {[%clk 0:00:06.6]} 72... Kc2 {[%clk 0:00:07]} 73.
Rb7 {[%clk 0:00:07.3]} 73... Rxb7 {[%clk 0:00:06]} 0-1

[Event "Early-Titled-Tuesday-Blitz-February-27-2024"]
[Site "Chess.com"]
[Date "2024.02.27"]
[Round "10"]
[White "rasmussvane"]
[Black "PepeCuenca"]
[Result "1-0"]
[WhiteElo "2934"]
[BlackElo "2711"]
[TimeControl "180+1"]
[EndTime "9:57:07 PST"]
[Termination "rasmussvane won on time"]

1. Nf3 {[%clk 0:02:57.5]} 1... Nf6 {[%clk 0:02:58.7]} 2. g3 {[%clk 0:02:57.8]}
2... g6 {[%clk 0:02:59.2]} 3. Bg2 {[%clk 0:02:58.3]} 3... Bg7 {[%clk 0:03:00.1]}
4. O-O {[%clk 0:02:58.8]} 4... O-O {[%clk 0:03:00.4]} 5. d4 {[%clk 0:02:57.5]}
5... d6 {[%clk 0:02:59.6]} 6. Re1 {[%clk 0:02:56.2]} 6... d5 {[%clk 0:02:58.2]}
7. c4 {[%clk 0:02:54.9]} 7... c6 {[%clk 0:02:56.2]} 8. Qb3 {[%clk 0:02:54.3]}
8... Nbd7 {[%clk 0:02:48]} 9. cxd5 {[%clk 0:02:52.9]} 9... cxd5 {[%clk
0:02:47.5]} 10. Nc3 {[%clk 0:02:53]} 10... e6 {[%clk 0:02:41]} 11. Bf4 {[%clk
0:02:51]} 11... Nb6 {[%clk 0:02:28.8]} 12. a4 {[%clk 0:02:48.8]} 12... Nc4
{[%clk 0:01:55.6]} 13. Red1 {[%clk 0:02:20.4]} 13... b6 {[%clk 0:01:47.1]} 14.
Ne5 {[%clk 0:02:17.2]} 14... Ba6 {[%clk 0:01:32.9]} 15. Nb5 {[%clk 0:02:17.1]}
15... Na5 {[%clk 0:01:11.3]} 16. Qa2 {[%clk 0:02:02.4]} 16... Bb7 {[%clk
0:00:58.7]} 17. Rac1 {[%clk 0:01:43.1]} 17... a6 {[%clk 0:00:56.2]} 18. Nc7
{[%clk 0:01:31.4]} 18... Rc8 {[%clk 0:00:50.2]} 19. b4 {[%clk 0:01:30.9]} 19...
Rxc7 {[%clk 0:00:44.2]} 20. Rxc7 {[%clk 0:01:31]} 20... Qxc7 {[%clk 0:00:45.1]}
21. bxa5 {[%clk 0:01:31.6]} 21... Qd8 {[%clk 0:00:36.8]} 22. Rb1 {[%clk
0:01:21.9]} 22... Nd7 {[%clk 0:00:17.5]} 23. axb6 {[%clk 0:01:09.6]} 23... Nxe5
{[%clk 0:00:15.9]} 24. Bxe5 {[%clk 0:01:05.8]} 24... Bxe5 {[%clk 0:00:15.6]} 25.
dxe5 {[%clk 0:01:06.7]} 25... Qd7 {[%clk 0:00:13.2]} 26. a5 {[%clk 0:00:47.5]}
26... Rc8 {[%clk 0:00:13.3]} 27. Qb2 {[%clk 0:00:46.7]} 27... Rc5 {[%clk
0:00:12.7]} 28. Qd2 {[%clk 0:00:41.6]} 28... Qa4 {[%clk 0:00:10.6]} 29. Qg5
{[%clk 0:00:36]} 29... Qxa5 {[%clk 0:00:06.9]} 30. Qe7 {[%clk 0:00:29.3]} 30...
Qa2 {[%clk 0:00:01.3]} 31. Rf1 {[%clk 0:00:20.2]} 31... Rb5 {[%clk 0:00:01.8]}
32. Qxb7 {[%clk 0:00:19.6]} 32... Qb2 {[%clk 0:00:01.9]} 33. Qxa6 {[%clk
0:00:18.6]} 33... Rxb6 {[%clk 0:00:01.7]} 34. Qa5 {[%clk 0:00:16.6]} 34... Kg7
{[%clk 0:00:01.7]} 35. e3 {[%clk 0:00:16.3]} 35... Rb5 {[%clk 0:00:02.2]} 36.
Qc7 {[%clk 0:00:16.4]} 36... Rb7 {[%clk 0:00:01.7]} 37. Qc1 {[%clk 0:00:13.6]}
37... Qxe5 {[%clk 0:00:01.7]} 38. Qa1 {[%clk 0:00:14.1]} 38... Qxa1 {[%clk
0:00:01.8]} 39. Rxa1 {[%clk 0:00:14.1]} 39... Rb2 {[%clk 0:00:02.7]} 40. Bf3
{[%clk 0:00:12.3]} 40... h5 {[%clk 0:00:02.9]} 41. Kg2 {[%clk 0:00:11.9]} 41...
Kf6 {[%clk 0:00:03.3]} 42. Ra7 {[%clk 0:00:11.8]} 42... Rb4 {[%clk 0:00:03.4]}
43. Be2 {[%clk 0:00:11.8]} 43... h4 {[%clk 0:00:03.4]} 44. g4 {[%clk 0:00:10.9]}
44... g5 {[%clk 0:00:02.9]} 45. Ra8 {[%clk 0:00:10.4]} 45... Kg7 {[%clk
0:00:02.8]} 46. Rd8 {[%clk 0:00:09.6]} 46... Rb7 {[%clk 0:00:02.5]} 47. Bd3
{[%clk 0:00:09.5]} 47... Kf6 {[%clk 0:00:02.9]} 48. Kf3 {[%clk 0:00:09.8]} 48...
Ke7 {[%clk 0:00:03.4]} 49. Rh8 {[%clk 0:00:09.3]} 49... Kf6 {[%clk 0:00:03.9]}
50. Rh6+ {[%clk 0:00:08.3]} 50... Ke7 {[%clk 0:00:04.3]} 51. Rh5 {[%clk
0:00:08.8]} 51... Kf6 {[%clk 0:00:04.3]} 52. Bc2 {[%clk 0:00:06.8]} 52... Rb2
{[%clk 0:00:04.1]} 53. Ba4 {[%clk 0:00:07.1]} 53... Rb7 {[%clk 0:00:03.6]} 54.
Rh8 {[%clk 0:00:06.4]} 54... Kg7 {[%clk 0:00:03.7]} 55. Rd8 {[%clk 0:00:06.1]}
55... Ra7 {[%clk 0:00:04]} 56. Bb5 {[%clk 0:00:05.7]} 56... Rb7 {[%clk
0:00:04.4]} 57. Bc6 {[%clk 0:00:06.1]} 57... Rc7 {[%clk 0:00:04.9]} 58. Ba4
{[%clk 0:00:06.4]} 58... Ra7 {[%clk 0:00:05.3]} 59. Bd1 {[%clk 0:00:06]} 59...
Ra1 {[%clk 0:00:05.3]} 60. Be2 {[%clk 0:00:06.1]} 60... Ra7 {[%clk 0:00:05.4]}
61. Rd6 {[%clk 0:00:06.1]} 61... Kf6 {[%clk 0:00:05.4]} 62. Rb6 {[%clk
0:00:06.4]} 62... Kg7 {[%clk 0:00:05.5]} 63. Rb3 {[%clk 0:00:06.7]} 63... Ra2
{[%clk 0:00:05.6]} 64. Rb1 {[%clk 0:00:05]} 64... Ra3 {[%clk 0:00:05.5]} 65. h3
{[%clk 0:00:05.5]} 65... Ra5 {[%clk 0:00:04.7]} 66. Rd1 {[%clk 0:00:06.1]} 66...
Ra3 {[%clk 0:00:04.7]} 67. Bd3 {[%clk 0:00:06.5]} 67... Ra2 {[%clk 0:00:05]} 68.
Kg2 {[%clk 0:00:05.9]} 68... Ra3 {[%clk 0:00:05.3]} 69. Rd2 {[%clk 0:00:06.4]}
69... Rb3 {[%clk 0:00:05.3]} 70. f4 {[%clk 0:00:06.7]} 70... Kf6 {[%clk
0:00:02.3]} 71. Kf3 {[%clk 0:00:07.1]} 71... Rc3 {[%clk 0:00:02.2]} 72. Ke2
{[%clk 0:00:06.9]} 72... Ra3 {[%clk 0:00:02.5]} 73. Kf2 {[%clk 0:00:05.7]} 73...
Ra1 {[%clk 0:00:02.9]} 74. Kf3 {[%clk 0:00:05.1]} 74... Rh1 {[%clk 0:00:02.6]}
75. Kg2 {[%clk 0:00:05.6]} 75... Re1 {[%clk 0:00:03]} 76. Re2 {[%clk 0:00:05.9]}
76... Rd1 {[%clk 0:00:03.2]} 77. Bc2 {[%clk 0:00:06.5]} 77... Rc1 {[%clk
0:00:03.4]} 78. Rf2 {[%clk 0:00:06.8]} 78... gxf4 {[%clk 0:00:02.1]} 79. exf4
{[%clk 0:00:07.2]} 79... Kg7 {[%clk 0:00:02.3]} 80. Kf3 {[%clk 0:00:07.3]} 80...
Ra1 {[%clk 0:00:02.5]} 81. Rd2 {[%clk 0:00:07.3]} 81... Ra3+ {[%clk 0:00:02.9]}
82. Bd3 {[%clk 0:00:07.6]} 82... Rb3 {[%clk 0:00:02.5]} 83. g5 {[%clk 0:00:08]}
83... Rc3 {[%clk 0:00:02.1]} 84. Kg4 {[%clk 0:00:08.1]} 84... Rc1 {[%clk
0:00:01.7]} 85. Kxh4 {[%clk 0:00:08.1]} 85... Rf1 {[%clk 0:00:02.1]} 86. Bxf1
{[%clk 0:00:08.3]} 1-0